[Event "34th Pula Open 2022"]
[Site "Pula"]
[Date "2022.06.24"]
[Round "8.7"]
[White "Makovec, Bruno"]
[Black "Fercec, Nenad"]
[Result "1-0"]
[ECO "E16"]
[WhiteElo "2215"]
[BlackElo "2415"]
[Annotator "TA"]
[PlyCount "159"]
[EventDate "2022.06.18"]
[EventType "swiss"]
[EventCountry "CRO"]
[SourceTitle "playchess.com"]
[Source "ChessBase"]
[SourceQuality "1"]
[TimeControl "5400+30"]

{[%evp 9,159,18,27,28,33,30,18,27,48,41,53,54,45,15,23,14,29,-79,-90,-75,-32,-81,-82,-78,-76,-85,-72,-74,-72,-79,-65,-66,-35,-39,0,-34,0,0,0,0,0,0,16,0,0,4,32,4,36,0,0,-258,-181,-193,-54,-472,-456,-531,-527,-511,-476,-608,-455,-400,0,-168,58,78,103,108,128,116,120,121,160,138,152,158,164,166,298,143,266,247,233,207,733,158,168,64,65,49,42,42,176,168,177,168,183,183,170,161,250,227,398,183,321,318,301,106,106,106,106,106,106,106,106,106,106,106,106,106,106,106,106,106,106,0,106,106,106,60,106,83,83,60,29972,29973,29979,29980,29980,29981,29981,29982,29982,29983,29983,29984,29986,29987,29987,29986]} 1. d4 {[%emt 0:00:03]} Nf6 {[%emt 0:00:11]} 2. c4 {[%emt 0:00:05]} e6 {[%emt 0:00:18]} 3. Nf3 {[%emt 0:00:56]} b6 {[%emt 0:00:33]} 4. g3 {[%emt 0:00:12]} Bb7 {[%emt 0:00:14]} 5. Bg2 {[%emt 0:00:10]} g6 {[%emt 0:00:16]} 6. Nc3 {[%emt 0:00:34] E16: Queen's Indian: 4 g3 Bb7 5 Bg2 Bb4+.} Bg7 {[%emt 0:00:36] The main line 6...Bg7 scores better than 6...Ne4.} 7. d5 {[%emt 0:01:18]} exd5 {[%emt 0:00:14]} 8. cxd5 {[%emt 0:00:07] The position is equal.} O-O {[%emt 0:00:09]} 9. O-O {[%emt 0:00:04]} Re8 {[%emt 0:00:06]} 10. Nd4 {[%emt 0:06:31]} c5 {[%emt 0:14:00]} 11. dxc6 {[%emt 0:06:13]} dxc6 {[%emt 0:00:41][%cal Bd7c6,Bc6c5][%mdl 32]} 12. Bf4 {[%emt 0:16:10]} Qc8 {[%emt 0:11:45] [#]} 13. Bxb8 $146 {[%emt 0:09:14]} (13. Qd2 $11 {remains equal.}) ({Predecessor:} 13. Rc1 Rd8 14. Ncb5 Ne8 15. Bg5 Rd7 16. Bh3 a6 17. Bxd7 Qxd7 18. Nc3 Bxd4 19. e3 {0-1 (48) Cuenca Jimenez,J (2515)-Huerga Leache,M (2440) Linares 2019}) 13... Rxb8 $17 {[%emt 0:01:17][%cal Ba8b8,Bb8b7,Bb7e7][%mdl 32]} 14. Qa4 {[%emt 0:03:59][%cal Rd4c6]} c5 {[%emt 0:17:38]} (14... b5 $5 {[%cal Rb5a4]} 15. Qc2 a6 $17) 15. Bxb7 {[%emt 0:04:08]} (15. Nc6 $1 $15 Ra8 16. Rad1) 15... Rxb7 {[%emt 0:07:51]} 16. Nf3 {[%emt 0:07:42]} Rbe7 {[%emt 0:00:40]} 17. Rad1 {[%emt 0:06:00]} a6 {[%emt 0:02:23]} 18. e3 {[%emt 0:05:57]} b5 {[%emt 0:03:20]} 19. Qc2 {[%emt 0:02:38]} Qc6 {[%emt 0:02:07] Prevents Rd6.} 20. Qe2 {[%emt 0:00:45]} h6 {[%emt 0:00:12]} 21. b3 {[%emt 0:00:57]} b4 {[%emt 0:02:28]} 22. Nb1 {[%emt 0:02:03]} Ne4 {[%emt 0:01:13]} (22... a5 $15) 23. Nfd2 $11 {[%emt 0:01:40]} Nc3 {[%emt 0:05:38]} 24. Nxc3 {[%emt 0:02:43]} bxc3 {[%emt 0:00:06]} (24... Bxc3 25. Nc4 $14) 25. Nc4 {[%emt 0:00:03]} Re6 {[%emt 0:00:53] Prevents Rd6.} 26. Rd3 {[%emt 0:01:51]} h5 {[%emt 0:01:25]} 27. h4 {[%emt 0:00:53]} f5 {[%emt 0:05:19]} 28. Rfd1 {[%emt 0:05:31]} R8e7 {[%emt 0:00:56]} 29. Rd5 {[%emt 0:01:39]} Kh7 {[%emt 0:01:44]} 30. Qd3 $2 {[%emt 0:00:15][%mdl 8192] [#]} (30. Qc2 $11) 30... Bd4 $1 $19 {[%emt 0:01:06][%mdl 512]} 31. Rd8 {[%emt 0:03:12] [#]} Qf3 {[%emt 0:01:25]} (31... f4 $1 $19 {[%cal Rf4e3]} 32. gxf4 (32. exd4 $2 Re1+ 33. Qf1 Rxf1+ 34. Rxf1 cxd4 $19) 32... Qf3 $1) 32. Qf1 $2 {[%emt 0:00:44][%mdl 8192] [#]} ({Only move:} 32. Re1 $1 $15) 32... f4 $1 {[%emt 0:01:05]} 33. gxf4 {[%emt 0:01:17]} (33. exd4 Qxd1 $3 {[%mdl 512]} 34. Qxd1 Re1+ 35. Qxe1 Rxe1+ 36. Kh2 c2 37. Rd7+ Kg8 38. Rd8+ Kg7 39. Rd7+ Kf8) (33. Rf8 Rf6) 33... Qg4+ {[%emt 0:00:29]} 34. Kh2 {[%emt 0:01:13]} Qxh4+ {[%emt 0:00:21]} 35. Kg2 {[%emt 0:01:18]} Qg4+ {[%emt 0:02:06]} 36. Kh2 {[%emt 0:00:50] [#]} Qf3 $2 {[%emt 0:01:00]} 37. Re1 $2 {[%emt 0:01:05]} (37. exd4 c2 38. Rc1 Qxf4+ 39. Kh1 Qh4+ 40. Kg1 Qg5+ 41. Kh1 Re4 $19) (37. Ra1 $11 {and White has nothing to worry.}) 37... Qg4 $2 {[%emt 0:08:36]} (37... Re4 $19 {[%cal Oe4f4] And now ...Rxf4! would win.} 38. Qg2 Rxf4 39. Qxf3 Rxf3) 38. Qh3 $1 $14 {[%emt 0:01:19] aiming for Qxg4. Really sharp!} Qxh3+ {[%emt 0:00:38]} 39. Kxh3 {[%emt 0:00:06]} Ra7 {[%emt 0:00:36]} 40. Rc1 {[%emt 0:00:35]} Bg7 {[%emt 0:00:11]} 41. Rd5 {[%emt 0:00:19]} a5 {[%emt 0:00:15]} 42. Ne5 {[%emt 0:01:49]} a4 {[%emt 0:00:07]} 43. Rxc3 {[%emt 0:00:35] White is more active.} axb3 {[%emt 0:00:04]} 44. axb3 {[%emt 0:00:16]} Ra2 {[%emt 0:00:06]} (44... Bxe5 {is a better defense.} 45. fxe5 (45. Rxe5 Rxe5 46. fxe5 Rb7 $16) 45... Rb6 46. Rdxc5 Rab7) 45. Kg2 {[%emt 0:00:21]} ({Not} 45. Rcxc5 Bxe5 46. Rxe5 Rxe5 47. Rxe5 (47. fxe5 Rxf2 48. Kg3 Rb2 $14) 47... Rxf2 $16) (45. Rd7 $18 {and the rest is easy.}) 45... g5 {[%emt 0:00:08]} (45... Bxe5 $16 {was worth a try.} 46. fxe5 g5 47. Rcxc5 Kg6) 46. Rcxc5 {[%emt 0:01:09] Black must now prevent Nf3.} ({Weaker is} 46. Rdxc5 Bxe5 47. Rxe5 Rxe5 48. fxe5 Rb2 $16) 46... gxf4 {[%emt 0:00:06]} 47. exf4 {[%emt 0:00:10] Threatens to win with Rc7.} Rb2 $2 {[%emt 0:00:15]} (47... Bxe5 48. Rxe5 (48. fxe5 Kg6 $16) 48... Rxe5 49. Rxe5 (49. fxe5 Kg6 $18) 49... h4) 48. Nc4 $2 {[%emt 0:02:07]} (48. Rd7 $18 {and White stays clearly on top.}) 48... Rg6+ $16 {[%emt 0:00:52]} 49. Rg5 {[%emt 0:01:01]} (49. Kf1 $18 Rb1+ 50. Ke2) 49... Rxb3 $14 {[%emt 0:00:10]} 50. Rxg6 {[%emt 0:00:32]} Kxg6 {[%emt 0:00:03][%mdl 4096] Endgame KRB-KRN} 51. Rg5+ {[%emt 0:00:15]} Kf6 {[%emt 0:00:33]} ({Black should try} 51... Kh6 $14) 52. Rxh5 $18 {[%emt 0:01:13]} Rb4 {[%emt 0:00:39] [#]} 53. Rc5 {[%emt 0:00:51]} Kf7 {[%emt 0:01:46]} 54. Kf3 {[%emt 0:00:27]} Bd4 {[%emt 0:00:14]} 55. Rc7+ {[%emt 0:00:14]} Ke6 {[%emt 0:00:09] [#]} (55... Kg8 $142 56. Ne3 Bb6) 56. Ne3 $1 {[%emt 0:00:25]} Rb2 $2 {[%emt 0:01:26]} (56... Kd6) 57. Rc6+ {[%emt 0:00:36]} (57. f5+ $142 Kd6 58. Rc4) 57... Kd7 {[%emt 0:00:11]} (57... Kf7 $142 58. f5 Rb4 59. Rc7+ Kf8) 58. Rc4 {[%emt 0:00:41]} Bb6 {[%emt 0:00:16]} 59. Rc2 $2 {[%emt 0:00:31]} (59. f5 $18 {has better winning chances.}) 59... Rxc2 $16 {[%emt 0:01:30]} 60. Nxc2 {[%emt 0:00:01] KB-KN} Ke6 {[%emt 0:00:08]} 61. Ne3 {[%emt 0:00:07]} Bd4 {[%emt 0:00:05]} 62. Ke4 {[%emt 0:00:08]} Bb2 {[%emt 0:00:07]} 63. f5+ {[%emt 0:00:13]} Kf7 {[%emt 0:02:06]} 64. Nd5 {[%emt 0:00:57]} Ba1 {[%emt 0:00:08]} 65. Kf4 {[%emt 0:00:33]} Bd4 {[%emt 0:01:01]} 66. f3 {[%emt 0:00:13]} Bb2 {[%emt 0:00:11]} 67. Ke4 {[%emt 0:00:47]} Ba1 {[%emt 0:00:43]} 68. Kf4 {[%emt 0:00:41]} Bb2 {[%emt 0:00:03]} 69. Kg4 {[%emt 0:00:29]} Bc1 {[%emt 0:00:36]} 70. Nc3 {[%emt 0:00:44]} (70. Kh3 $16) 70... Bb2 {[%emt 0:02:05]} (70... Ke7 $14 {should be considered.} 71. Nd5+ Kd6) 71. Ne4 {[%emt 0:00:07] White threatens Kg5 and mate.} Bc1 {[%emt 0:00:59]} 72. f4 {[%emt 0:02:35] Intending Kg5 and mate.} Be3 $2 {[%emt 0:06:30][%mdl 8192]} (72... Ke7 $14 73. Kg5 Be3) 73. Kg5 $1 {[%emt 0:00:21] White mates.} Bc1 {[%emt 0:00:18]} 74. f6 {[%emt 0:00:59]} Ke6 {[%emt 0:00:29]} 75. Nc5+ {[%emt 0:01:41]} Kf7 {[%emt 0:00:16]} 76. Nd3 {[%emt 0:00:26]} Ba3 {[%emt 0:01:14]} 77. Kf5 {[%emt 0:00:10]} Bd6 {[%emt 0:00:25]} 78. Ne5+ {[%emt 0:00:10]} Kf8 {[%emt 0:00:08]} 79. Ke6 {[%emt 0:00:23]} Ba3 {[%emt 0:00:05]} 80. f5 {[%emt 0:00:57] White used his chance.  Weighted Error Value: White=0.58/Black=0.44} 1-0

[Event "34th Pula Open 2022"]
[Site "Pula"]
[Date "2022.06.24"]
[Round "8.8"]
[White "Rubil, Marko"]
[Black "Ghersinich, Enrico"]
[Result "1-0"]
[ECO "B78"]
[WhiteElo "2272"]
[BlackElo "2193"]
[Annotator "TA"]
[PlyCount "157"]
[EventDate "2022.06.18"]
[EventType "swiss"]
[EventCountry "CRO"]
[SourceTitle "playchess.com"]
[Source "ChessBase"]
[SourceQuality "1"]
[TimeControl "5400+30"]

{[%evp 24,157,43,42,44,36,50,35,38,53,78,59,66,0,0,0,28,28,28,28,28,28,28,20,33,28,29,5,36,37,39,46,95,66,102,103,150,155,161,156,164,158,148,150,155,109,97,101,149,149,149,149,149,149,149,131,176,168,217,193,206,184,184,184,184,185,184,166,188,94,334,324,415,416,416,134,613,552,551,500,443,474,341,0,0,0,0,0,0,0,11,9,93,93,257,0,0,0,0,0,0,0,0,0,0,0,0,0,12,12,29955,1273,9113,1715,5153,5038,1913,354,1564,951,650,619,528,499,29978,29979,29979,29980,29980,29981,29981,29982,29982,29983,29997,29998]} 1. e4 {[%emt 0:04:30]} c5 {[%emt 0:00:53]} 2. Nf3 {[%emt 0:00:09]} d6 {[%emt 0:01:32]} 3. d4 {[%emt 0:11:43]} cxd4 {[%emt 0:00:30]} 4. Nxd4 {[%emt 0:00:02]} Nf6 {[%emt 0:00:24]} 5. Nc3 {[%emt 0:00:09]} g6 {[%emt 0:02:11]} 6. Be3 {[%emt 0:00:40]} Bg7 {[%emt 0:00:19]} 7. f3 {[%emt 0:00:08]} O-O {[%emt 0:00:21]} 8. Qd2 {[%emt 0:00:06]} Nc6 {[%emt 0:00:19]} 9. Bc4 {[%emt 0:23:56]} Bd7 {[%emt 0:01:33]} 10. O-O-O {[%emt 0:00:09]} Rc8 {[%emt 0:01:43]} 11. Bb3 {[%emt 0:00:02]} Nxd4 {[%emt 0:03:50] is now more promising than 11...Ne5.} 12. Bxd4 {[%emt 0:00:01]} b5 {[%emt 0:00:10]} 13. Nd5 {[%emt 0:00:06]} Nxd5 $1 {[%emt 0:00:11] B78: Sicilian Dragon: Yugoslav Attack, 9 Bc4 Bd7 10 0-0-0 Rc8.} 14. Bxg7 {[%emt 0:00:02]} Kxg7 {[%emt 0:00:10]} 15. exd5 {[%emt 0:00:02]} a5 {[%emt 0:00:14] White is slightly better.} 16. a3 $1 {[%emt 0:00:01]} b4 {[%emt 0:00:22]} 17. axb4 {[%emt 0:00:07]} axb4 {[%emt 0:00:07]} 18. h4 {[%emt 0:00:59]} (18. Qxb4 $14 Kg8 19. Rhe1) 18... Kg8 $11 {[%emt 0:04:14]} 19. h5 {[%emt 0:06:58] Black must now prevent Qh6.} Qa5 {[%emt 0:05:40][%cal Ra5a1]} 20. Qd4 {[%emt 0:04:34]} Bf5 {[%emt 0:00:22][%cal Of5c2] And now ...Bxc2! would win.} 21. Kd2 {[%emt 0:08:03][%cal Bc1d2,Bd2e3,Be3f2,Bf2g3][%mdl 32]} Rc5 {[%emt 0:07:59]} 22. hxg6 {[%emt 0:06:03]} Bxg6 {[%emt 0:00:37]} 23. Ke3 $40 {[%emt 0:00:10][%mdl 128] White has some attack.} Rfc8 {[%emt 0:05:04]} 24. Rd2 {[%emt 0:00:02]} Qb5 {[%emt 0:08:14]} 25. g3 {[%emt 0:19:55]} Qb6 {[%emt 0:20:04]} 26. g4 {[%emt 0:01:45] [#] Hoping for f4.} Qb5 $146 {[%emt 0:02:02]} ({Predecessor:} 26... Qc7 27. f4 Bxc2 28. Bxc2 Rxc2 29. Qe4 e5 30. Qxh7+ Kf8 31. Qh6+ Ke7 32. Qg5+ Kd7 33. Qf5+ Ke7 {1-0 (45) Borosova,Z (2312)-Joo,J (2123) Banska Stiavnica 2017}) 27. Rc1 {[%emt 0:05:11]} Qa6 {[%emt 0:06:46]} (27... R5c7 $14) 28. Kf2 {[%emt 0:00:34]} R8c7 {[%emt 0:01:12]} 29. f4 {[%emt 0:06:39]} Rc4 {[%emt 0:02:48]} 30. Bxc4 $16 {[%emt 0:00:07]} Rxc4 {[%emt 0:00:05]} 31. Qe3 {[%emt 0:00:03]} Re4 {[%emt 0:00:06]} 32. Qf3 {[%emt 0:00:10]} Qc4 {[%emt 0:00:06]} 33. Kg3 {[%emt 0:00:52]} f5 {[%emt 0:10:11]} 34. gxf5 {[%emt 0:00:19]} (34. g5 $142 $1) 34... Bxf5 {[%emt 0:00:07]} 35. Qf2 {[%emt 0:01:30]} h5 {[%emt 0:02:08]} (35... e5 $2 36. dxe6 Qxe6 37. Kg2 $16 (37. Qa7 Qh6 $11)) (35... Qa2 $142) 36. Rh1 $1 {[%emt 0:00:54]} Bg4 {[%emt 0:00:05]} 37. Re1 {[%emt 0:00:13]} Rxe1 {[%emt 0:03:48]} 38. Qxe1 {[%emt 0:00:00][%mdl 4096] Endgame KQR-KQB} Kf7 {[%emt 0:00:08]} 39. Qf2 {[%emt 0:00:54]} Qe4 {[%emt 0:00:47]} 40. Kh2 {[%emt 0:00:35] Inhibits Qh1+.} Qc4 {[%emt 0:02:24]} (40... b3 $142) 41. Rd4 $18 {[%emt 0:00:31]} Qc5 {[%emt 0:00:05]} 42. Qd2 {[%emt 0:00:48]} Bf5 {[%emt 0:00:05]} 43. Rxb4 {[%emt 0:00:59] Strongly threatening Rd4.} Bxc2 {[%emt 0:00:07]} 44. Rd4 {[%emt 0:00:06]} Bf5 {[%emt 0:01:00]} 45. b4 {[%emt 0:00:39]} Qb5 {[%emt 0:00:05]} 46. Qe1 {[%emt 0:01:21] Inhibits Qf1.} (46. Qd1 $1 $18 {[%cal Rd1h5]} Kg6 47. Kg3) 46... Qa4 $2 {[%emt 0:01:37]} (46... h4 $16 {was necessary.} 47. Qe3 (47. Qxh4 Qe2+ 48. Kg1 Qb2 $16) 47... Ke8) 47. Qc3 $1 {[%emt 0:00:29]} Qa2+ {[%emt 0:00:50]} 48. Rd2 {[%emt 0:00:07]} Qb1 {[%emt 0:00:04]} 49. Rb2 $2 {[%emt 0:01:01]} ({Not} 49. Rg2 Bg4 50. Rf2 Bf5 $18) (49. Re2 $18 {is more deadly. Threatening mate with Qe3.} Qd3 50. Qxd3 Bxd3 51. Re6) 49... Qf1 $2 {[%emt 0:02:57][%mdl 8192]} (49... Qa1 $16) 50. Qe3 {[%emt 0:00:10]} (50. Rg2 Bg4 51. f5 Qxf5 $16) 50... Bg4 {[%emt 0:01:47]} 51. b5 {[%emt 0:00:43]} Bf3 {[%emt 0:01:23]} 52. Qe6+ {[%emt 0:00:29]} Kf8 {[%emt 0:00:45]} 53. Kg3 $2 {[%emt 0:00:35]} (53. Qf5+ $18 Kg7 54. Qb1) 53... Bg4 $11 {[%emt 0:00:32]} 54. Qh6+ {[%emt 0:00:32]} Kf7 {[%emt 0:00:09] aiming for ...Qh3+.} 55. Qh7+ {[%emt 0:00:11]} Ke8 {[%emt 0:00:05]} 56. Qh8+ {[%emt 0:00:25]} Kd7 {[%emt 0:00:04]} 57. Qd4 {[%emt 0:00:36][%cal Of4f5]} Qh3+ {[%emt 0:02:16]} (57... Qf3+ $1 $11 {keeps the balance.} 58. Kh2 Qh3+ 59. Kg1 Bf3) 58. Kf2 $16 {[%emt 0:00:06]} h4 $2 {[%emt 0:00:04] [#]} (58... Qh2+ $2 59. Ke3 Qg1+ 60. Kd3 Qf1+ 61. Kc3 $18) (58... Qf3+ $16 59. Ke1 (59. Kg1 Qg3+ 60. Kf1 Bf5 $14) 59... Qh1+ 60. Kd2 Bf3) 59. Ke1 $2 {[%emt 0:00:43]} ({White must play} 59. b6 $1 $18 {[%cal Rb6b7]} Qg3+ 60. Kf1) 59... Qh1+ $11 {[%emt 0:00:37]} 60. Kd2 {[%emt 0:00:26]} h3 {[%emt 0:01:53] Threatens to win with ...h2.} 61. b6 $1 {[%emt 0:00:49] b7 is the strong threat.} h2 {[%emt 0:00:43]} 62. Qa4+ {[%emt 0:00:40]} Kd8 {[%emt 0:00:04]} 63. Qa8+ {[%emt 0:01:10]} Bc8 {[%emt 0:00:57] ( -> ...Qg2+)} 64. b7 {[%emt 0:00:00][%csl Ga8][%cal Rb7c8]} Qxd5+ {[%emt 0:00:48]} 65. Kc3 {[%emt 0:00:01][%csl Ga8][%cal Rb7c8] The board is on fire.} Qf3+ {[%emt 0:01:23]} 66. Kb4 {[%emt 0:00:29][%csl Ga8][%cal Rb7c8]} Qxf4+ $2 {[%emt 0:01:07][%mdl 8192]} (66... Qxb7+ $11 67. Qxb7 Bxb7 68. Rxh2 Kd7) 67. Ka3 {[%emt 0:00:35]} (67. Ka5 $142 Qe5+ 68. Ka6 Qe6 69. bxc8=Q+ Qxc8+ 70. Qxc8+ Kxc8 71. Rxh2 Kd8 72. Kb6) 67... Qe3+ {[%emt 0:00:54] [#]} 68. Ka2 $1 {[%emt 0:00:13][%csl Ga8][%cal Rb7c8]} Qe6+ {[%emt 0:00:25]} 69. Rb3 {[%emt 0:00:15] White threatens Qa5+ and mate.} h1=Q {[%emt 0:01:15]} 70. bxc8=Q+ {[%emt 0:00:05]} Qxc8 {[%emt 0:00:02]} 71. Qxh1 {[%emt 0:00:17] White wants to mate with Kb2.} Qc2+ {[%emt 0:00:51]} 72. Rb2 {[%emt 0:00:21]} Qc4+ {[%emt 0:00:13]} 73. Ka1 {[%emt 0:00:17]} d5 {[%emt 0:00:20]} (73... Qd4 $18 74. Qa8+ Kd7) 74. Qh8+ {[%emt 0:00:45] White mates.} Kd7 {[%emt 0:00:08]} 75. Rb7+ {[%emt 0:00:33]} Ke6 {[%emt 0:01:02]} 76. Qh6+ {[%emt 0:00:20]} Kf5 {[%emt 0:00:14]} 77. Qh5+ {[%emt 0:00:30]} Kf6 {[%emt 0:00:33]} 78. Rb6+ {[%emt 0:00:11]} Kg7 {[%emt 0:00:49]} 79. Qg6+ {[%emt 0:00:09] Weighted Error Value: White=0.30/Black=0.34} 1-0

[Event "34th Pula Open 2022"]
[Site "Pula"]
[Date "2022.06.24"]
[Round "8.9"]
[White "Boucquet, Emile"]
[Black "Seres, Bela"]
[Result "0-1"]
[ECO "C01"]
[WhiteElo "2252"]
[BlackElo "2164"]
[Annotator "TA"]
[PlyCount "82"]
[EventDate "2022.06.18"]
[EventType "swiss"]
[EventCountry "CRO"]
[SourceTitle "playchess.com"]
[Source "ChessBase"]
[SourceQuality "1"]
[TimeControl "5400+30"]

{[%evp 18,82,15,8,12,-21,-8,-48,-36,-44,-41,-112,-45,-53,-39,-42,-54,-84,-75,-94,-64,-58,-75,-115,-118,-116,-118,-125,-97,-84,-60,-91,-91,-93,-95,-96,-96,-101,-50,-69,-57,-75,-73,-87,-29,-17,-24,-63,-66,-119,-127,-157,-157,-220,-221,-312,-84,-29986,-29986,-29983,-29984,-29974,-29975,-29988,-29977,-29976,-6195]} 1. e4 {[%emt 0:00:04]} e5 {[%emt 0:00:05]} 2. Nf3 {[%emt 0:00:30]} Nf6 {[%emt 0:00:30]} 3. Nxe5 {[%emt 0:00:30]} d6 {[%emt 0:00:30]} 4. Nf3 {[%emt 0:00:04]} Nxe4 {[%emt 0:01:57]} 5. d3 {[%emt 0:00:30]} Nf6 {[%emt 0:00:30]} 6. d4 {[%emt 0:00:30]} d5 {[%emt 0:00:00]} 7. Bd3 {[%emt 0:01:43]} Bd6 {[%emt 0:00:00]} 8. O-O {[%emt 0:00:30]} O-O {[%emt 0:00:00]} 9. h3 {[%emt 0:15:58] is recently more successful than 9.Bg5.} h6 {[%emt 0:03:42]} 10. Re1 {[%emt 0:12:01]} Re8 {[%emt 0:00:49] C01: French: Exchange Variation.} 11. Ne5 {[%emt 0:00:29]} c5 {[%emt 0:00:32][%cal Bc7c5,Bc5c4][%mdl 32] [#]} 12. Be3 $146 {[%emt 0:04:44]} ({Predecessor:} 12. c3 Nc6 13. Nxc6 bxc6 14. Be3 c4 15. Bc2 Ne4 16. Nd2 Nxd2 17. Qxd2 Qf6 18. Bf4 Bd7 19. Bxd6 Qxd6 20. Rxe8+ Rxe8 {½-½ (37) Goltsev,D (2199)-Kovalenko,I (2674) Chess.com INT 2022}) 12... c4 {[%emt 0:05:25] Black is slightly better.} 13. Be2 {[%emt 0:02:58]} Nc6 {[%emt 0:02:21]} 14. Nf3 {[%emt 0:03:36] [#]} (14. Ng4 $15) 14... Ne4 {[%emt 0:01:55] 0x0.00207c31056ddp-1022s more active pieces. The white rooks are badly placed.} (14... Rxe3 $1 $17 {[%mdl 512]} 15. fxe3 Qe7) 15. Nfd2 $15 {[%emt 0:01:23]} f5 {[%emt 0:04:36] Hoping for ...f4.} (15... Qh4 {feels hotter.} 16. Bf3 Ne7 17. Nc3 f5) 16. Nxe4 {[%emt 0:13:21]} fxe4 {[%emt 0:00:42]} 17. Bg4 {[%emt 0:01:26]} Bc7 {[%emt 0:11:26]} 18. Nc3 {[%emt 0:09:20]} a6 {[%emt 0:06:00]} (18... Rf8 {looks sharper.} 19. Bxc8 Rxc8 20. Qg4 Kh7) 19. Bxc8 {[%emt 0:02:42]} Rxc8 {[%emt 0:00:14]} 20. Qh5 {[%emt 0:00:03]} Ne7 {[%emt 0:07:01]} 21. Ne2 {[%emt 0:01:57][%cal Bc3e2,Be2f4,Bf4h5][%mdl 32]} Rf8 $1 {[%emt 0:01:44]} 22. Qg4 {[%emt 0:03:52]} Nf5 {[%emt 0:05:08]} 23. Bf4 {[%emt 0:08:07]} Qf6 {[%emt 0:08:18]} 24. Bxc7 {[%emt 0:01:03]} Rxc7 {[%emt 0:00:15][%cal Bc8c7,Bc7f7,Bf7f4][%mdl 32]} 25. Nf4 {[%emt 0:02:48]} Qd6 {[%emt 0:07:58]} ({Much weaker is} 25... Nxd4 $6 26. Nxd5 Qxf2+ 27. Kh1 $11) ({Don't take} 25... Qxd4 26. Rad1 Qxb2 27. Ne6 $16 (27. Nxd5 Rcf7 $14)) 26. Rad1 {[%emt 0:02:26]} g5 {[%emt 0:03:56]} 27. Nh5 {[%emt 0:01:00]} Qg6 {[%emt 0:02:37]} ({Better is} 27... c3 $17 28. b3 Rcf7) 28. c3 {[%emt 0:00:54]} Rcf7 {[%emt 0:02:51]} 29. Re2 {[%emt 0:00:58]} Kh7 {[%emt 0:05:27]} 30. Rf1 {[%emt 0:00:53]} Ng7 {[%emt 0:04:23]} (30... b5 $17) 31. Nxg7 $11 {[%emt 0:00:26]} Kxg7 {[%emt 0:00:02]} 32. Re3 {[%emt 0:01:31]} h5 {[%emt 0:02:01][%cal Bh6h5,Bh5h4,Bh4h3][%mdl 32]} 33. Qg3 {[%emt 0:00:02]} (33. Qe2 $15) 33... Rf4 $17 {[%emt 0:00:55]} 34. Re2 {[%emt 0:00:33] [#]} h4 $1 {[%emt 0:02:47]} 35. Qe3 {[%emt 0:03:25]} (35. Qh2 $17 {keeps fighting.}) 35... g4 $19 {[%emt 0:00:45][%cal Of4f3] aiming for ...Rf3!} 36. hxg4 {[%emt 0:01:23]} (36. Kh2 $142) 36... Qxg4 $2 {[%emt 0:01:05]} (36... Rxg4 $19 {is more deadly.} 37. Qh3 Rf3) 37. Qd2 $2 {[%emt 0:02:47][%mdl 8192] Now White is beyond hope.} (37. Kh2 $17) 37... h3 {[%emt 0:01:25][%csl Gh3][%cal Rg4g2] Black mates.} 38. f3 {[%emt 0:01:18]} Rxf3 {[%emt 0:01:08]} 39. Rxf3 {[%emt 0:01:22]} Rxf3 {[%emt 0:00:15]} 40. Qe1 {[%emt 0:00:49]} Rg3 {[%emt 0:00:20]} 41. Qf1 {[%emt 0:00:32] [#]} Rxg2+ {[%emt 0:02:21] Weighted Error Value: White=0.38/Black=0.23 (precise)} (41... Qxe2 $142 $3 {[%mdl 512]} 42. Qxe2 Rxg2+ 43. Qxg2+ hxg2 44. Kf2 Kf6 45. Kxg2 a5 46. Kf2 a4 47. Kg3 Kf5 48. Kh3 Kf4 49. Kh2 e3 50. Kg2 Kg4 51. a3 Kf4 52. Kf1 Kf3 53. Ke1 e2 54. Kd2 Kf2 55. Kc1 e1=Q+ 56. Kc2 Qa1 57. Kd2 Qxb2+ 58. Kd1 Ke3 59. Ke1 Qe2#) 0-1